bitfinex-derivatives/quotes_SOLF0:USTF0_20260227
["timestamp","ask_amount","ask_price","bid_price","bid_amount"]
[1772198285425,5.05487606,83.127,83.045,29.66584863]
[1772198285426,5.01838926,83.106,83.056,8.96373948]
[1772198286026,5.01838926,83.106,83.064,8.96373948]
[1772198286535,4.98891929,83.119,83.071,8.96373948]
[1772198287432,4.95203437,83.131,83.081,8.96373948]
[1772198288327,4.67125266,83.128,83.087,10.8316]
[1772198288720,4.67125266,83.128,83.081,8.96373948]
[1772198290034,4.57099017,83.109,83.051,8.46317209]
[1772198290532,15.39989017,83.109,83.068,10.834]
[1772198290929,15.39989017,83.109,83.068,19.29717209]
[1772198291731,15.39989017,83.109,83.071,8.46317209]
[1772198292832,10.8309,83.093,83.051,8.46317209]
[1772198293132,4.73098376,83.096,83.051,8.46317209]
[1772198294624,4.73098376,83.096,83.052,8.46317209]
[1772198294830,36.15,83.135,83.04,3.4742702]
[1772198294831,4.65150634,83.089,83.04,8.46317209]
[1772198295032,3.4742702,83.08,83.04,8.46317209]
[1772198295226,4.65150634,83.089,83.041,10.8376]
[1772198295630,4.65150634,83.089,83.041,19.30077209]
[1772198296025,4.65150634,83.089,83.042,8.46317209]
[1772198296231,15.30123282,83.087,83.042,8.46317209]
[1772198297131,15.30123282,83.087,83.044,10.8372]
[1772198298233,3.4742702,83.08,83.042,8.46317209]
[1772198298638,4.46953282,83.087,83.042,8.46317209]
[1772198299443,10.8332,83.076,83.042,8.46317209]
[1772198300538,4.46953282,83.087,83.042,8.46317209]
[1772198302036,4.46953282,83.087,83.047,10.8368]
[1772198302641,3.4742702,83.08,83.048,8.46317209]
[1772198305036,10.8327,83.079,83.048,8.46317209]
[1772198305334,3.4742702,83.08,83.048,8.46317209]
[1772198305540,4.46953282,83.087,83.048,8.46317209]
[1772198306741,3.4742702,83.08,83.048,8.46317209]
[1772198314349,10.8328,83.079,83.048,8.46317209]
[1772198315148,3.26914361,83.076,83.033,8.46317209]
[1772198315745,10.8336,83.072,83.034,8.46317209]
[1772198316445,3.26914361,83.076,83.034,8.46317209]
[1772198316646,201.37016019,83.484,83.039,8.46317209]
[1772198316647,3.21056361,83.121,83.039,8.46317209]
[1772198316950,3.21090473,83.119,83.039,8.46317209]
[1772198317149,13.99649823,83.089,83.048,19.29977209]
[1772198317450,13.99649823,83.089,83.049,8.46317209]
[1772198317651,3.16509823,83.084,83.049,8.46317209]
[1772198319749,10.831,83.092,83.051,7.96368616]
[1772198319946,36.15,83.135,83.051,7.96368616]
[1772198319947,3.00959326,83.134,83.051,7.96368616]
[1772198320750,10.829,83.108,83.067,7.72283996]
[1772198321553,2.92100133,83.114,83.069,7.72283996]
[1772198322158,10.8271,83.123,83.074,7.72283996]
[1772198322348,2.85005753,83.127,83.074,7.72283996]
[1772198322743,2.85040413,83.12,83.074,7.72283996]
[1772198323249,13.67780413,83.12,83.076,7.72283996]
[1772198324055,10.8282,83.114,83.076,7.72283996]
[1772198324252,2.7821905,83.114,83.064,7.72283996]
[1772198324955,10.8303,83.098,83.053,10.836]
[1772198325147,10.8303,83.098,83.053,18.55883996]
[1772198325344,10.8303,83.098,83.054,7.72283996]
[1772198326157,2.74505601,83.093,83.009,7.72283996]
[1772198326856,10.8332,83.076,83.029,10.8392]
[1772198327056,10.8332,83.076,83.03,7.72283996]
[1772198327262,2.74505601,83.093,83.03,7.72283996]
[1772198328365,2.74505601,83.093,83.031,7.72283996]
[1772198328862,2.48300824,83.077,83.031,7.72283996]
[1772198330363,2.48300824,83.077,83.034,7.72283996]
[1772198330562,2.4201882,83.089,83.034,7.72283996]
[1772198330868,2.42077573,83.115,83.034,7.72283996]
[1772198331070,10.8327,83.08,83.035,7.72283996]
[1772198331668,10.8327,83.08,83.038,7.72283996]
[1772198331865,10.8334,83.074,83.038,7.72283996]
[1772198333161,10.8343,83.067,83.038,7.72283996]
[1772198333773,10.8333,83.075,83.038,7.72283996]
[1772198334577,10.8322,83.083,83.038,7.72283996]
[1772198335070,10.833,83.077,83.038,7.72283996]
[1772198338573,10.8318,83.086,83.038,7.72283996]
[1772198341082,2.02722574,83.082,83.026,7.72283996]
[1772198341782,1.99329279,83.079,83.027,7.72283996]
[1772198342275,10.8337,83.072,83.027,7.72283996]
[1772198343679,10.8344,83.066,83.027,7.72283996]
[1772198343882,10.8344,83.066,82.971,36.13]
[1772198343883,2.03269338,83.065,83.015,7.72283996]
[1772198345277,2.03269338,83.065,83.026,10.8395]
[1772198345484,2.03269338,83.065,83.027,7.72283996]
[1772198346381,10.8341,83.069,83.027,7.72283996]
[1772198346684,1.93629591,83.087,83.032,7.72283996]
[1772198347588,10.832,83.085,83.042,10.8374]
[1772198347883,10.832,83.085,83.007,21.684]
[1772198347884,10.832,83.085,83.043,7.72283996]
[1772198349085,10.8327,83.079,83.043,7.72283996]
[1772198349492,1.77456619,83.079,83.024,7.72283996]
[1772198349985,10.8337,83.072,83.024,7.72283996]
[1772198351387,1.77456619,83.079,83.025,7.25550141]
[1772198351595,1.70170669,83.092,83.025,7.25550141]
[1772198352284,10.8322,83.084,83.034,7.25550141]
[1772198353193,10.8322,83.084,83.038,7.25550141]
[1772198353989,1.62019244,83.105,83.04,7.25550141]
[1772198354497,10.8313,83.09,83.047,7.25550141]
[1772198354692,1.62019244,83.105,83.047,7.25550141]
[1772198355993,10.8294,83.104,83.053,7.25550141]
[1772198356197,12.32012015,83.104,83.053,7.25550141]
[1772198356992,12.32012015,83.104,83.055,7.25550141]
[1772198357692,10.8302,83.098,83.055,7.25550141]
[1772198358093,1.41856711,83.097,83.026,7.25550141]
[1772198358993,10.8322,83.083,83.04,7.25550141]
[1772198359700,10.8333,83.075,83.04,7.25550141]
[1772198359900,1.34837719,83.086,83.04,7.25550141]
[1772198360296,1.32205815,83.1,83.042,7.25550141]
[1772198360899,1.32205815,83.1,83.059,7.25550141]
[1772198361097,1.37761727,83.112,83.059,7.25550141]
[1772198361997,10.8291,83.107,83.063,7.25550141]
[1772198363008,1.37761727,83.112,83.025,7.25550141]
[1772198363310,1.37092628,83.11,83.025,7.25550141]
[1772198363904,10.8309,83.094,83.046,7.25550141]
[1772198364311,1.37092628,83.11,83.046,7.25550141]
[1772198365310,10.8298,83.102,83.046,7.25550141]
[1772198366299,10.8305,83.096,83.046,7.25550141]
[1772198367300,10.8313,83.09,83.046,7.25550141]
[1772198368512,10.8298,83.102,83.046,7.25550141]
[1772198369408,1.25530814,83.12,83.046,7.25550141]
[1772198369611,1.25530814,83.117,83.046,7.25550141]
[1772198370916,1.25530814,83.117,83.054,7.25550141]
[1772198371316,14.91560012,83.159,83.054,7.25550141]
[1772198371317,1.20634061,83.135,83.054,7.25550141]
[1772198371715,10.8272,83.122,83.069,7.25550141]
[1772198373020,1.20634061,83.135,83.079,7.25550141]
[1772198374013,1.20634061,83.135,83.093,7.25550141]
[1772198374208,10.8244,83.143,83.093,7.25550141]
[1772198375517,1.10770167,83.136,83.093,7.25550141]
[1772198376018,10.8256,83.134,83.093,7.25550141]
[1772198379616,1.29119631,83.156,83.096,6.76497327]
[1772198380019,1.25962203,83.184,83.096,6.76497327]
[1772198380224,1.25962203,83.184,83.119,6.43766794]
[1772198380919,10.8216,83.164,83.119,6.43766794]
[1772198381529,10.8216,83.164,83.121,6.44757093]
[1772198383733,10.8216,83.164,83.123,6.44526356]
[1772198384432,10.8223,83.159,83.123,6.44526356]
[1772198384731,1.10658244,83.158,83.114,6.44526356]
[1772198385933,10.8227,83.156,83.114,6.44526356]
[1772198386430,1.10658244,83.158,83.114,6.44526356]
[1772198388331,10.822,83.161,83.121,6.45206103]
[1772198389132,10.8212,83.168,83.123,6.45239101]
[1772198390032,10.8212,83.168,83.081,5.4106277]
[1772198390033,10.8212,83.168,83.125,6.45253693]
[1772198390629,0.98802092,83.171,83.125,6.45253693]
[1772198392340,10.821,83.17,83.128,6.46318276]
[1772198393436,10.82,83.177,83.132,6.46277205]
[1772198394137,10.82,83.177,83.136,6.46289379]
[1772198394545,10.8191,83.184,83.139,6.46289379]
[1772198395044,0.81780331,83.196,83.139,6.46289379]
[1772198396040,0.81780331,83.196,83.111,21.657]
[1772198396041,10.8182,83.191,83.151,6.55799854]
[1772198396743,0.81780331,83.196,83.143,10.8243]
[1772198397345,10.8197,83.18,83.144,6.55817604]
[1772198398047,10.8204,83.174,83.137,10.8251]
[1772198398644,10.8204,83.174,83.131,6.55813122]
[1772198400347,0.55660292,83.185,83.131,6.55813122]
[1772198400941,10.8221,83.161,83.131,6.55813122]
[1772198401343,0.5871273,83.173,83.131,6.55813122]
[1772198401746,0.5871273,83.173,83.119,6.50892641]
[1772198401939,0.5871273,83.173,83.032,29.92958904]
[1772198402139,0.5871273,83.173,83.026,29.92958904]
[1772198402339,6.97831785,83.131,83.041,5.40968648]
[1772198403841,10.8264,83.128,83.067,10.8342]
[1772198404046,6.97831785,83.131,83.068,6.40703564]
[1772198404750,6.97831785,83.131,83.07,6.40703564]
[1772198405745,10.8263,83.128,83.072,6.40703564]
[1772198405948,6.97831785,83.131,83.072,6.40703564]
[1772198406751,6.97831785,83.131,83.08,6.40703564]
[1772198407549,6.97831785,83.131,83.068,6.40703564]
[1772198407752,6.97831785,83.131,83.051,6.40703564]
[1772198408755,6.97831785,83.11,83.066,6.40703564]
[1772198409250,6.97831785,83.11,83.068,10.8341]
[1772198409446,6.97831785,83.11,83.069,6.40703564]
[1772198409645,6.97831785,83.11,83.024,6.40703564]
[1772198409848,6.97831785,83.107,83.06,6.40703564]
[1772198410958,6.97831785,83.107,83.008,6.37556376]
[1772198411353,6.97831785,83.107,83.012,6.37556376]
[1772198412051,6.2053753,83.103,83.012,6.37556376]
[1772198412952,6.2053753,83.103,82.996,168.6762]
[1772198412953,6.2053753,83.101,83.014,6.37556376]
[1772198413859,6.2053753,83.083,83.027,6.37556376]
[1772198414157,6.2053753,83.126,83.027,6.37556376]
[1772198414361,17.0351753,83.102,83.046,6.37556376]
[1772198414762,6.2053753,83.116,83.005,6.37556376]
[1772198415452,6.2053753,83.116,83.0,62.0]
[1772198415453,6.2053753,83.096,83.04,6.37556376]
[1772198415850,6.2053753,83.096,83.005,6.37556376]
[1772198416852,6.2053753,83.084,83.031,6.37556376]
[1772198417761,6.2053753,83.084,83.035,6.37556376]
[1772198418554,6.2053753,83.084,83.038,10.838]
[1772198418755,6.2053753,83.084,83.039,6.37556376]
[1772198419862,6.2053753,83.084,83.041,10.8376]
[1772198420058,6.2053753,83.084,83.042,6.37556376]
[1772198420955,6.2053753,83.084,83.047,10.8368]
[1772198421761,11.0957792,83.156,83.0,62.0]
[1772198421762,6.2053753,83.125,83.062,6.37556376]
[1772198421956,36.13,83.126,83.062,6.37556376]
[1772198421957,6.2053753,83.107,83.062,6.37556376]
[1772198422354,36.13,83.139,83.062,6.37556376]
[1772198422560,6.2053753,83.138,83.062,6.37556376]
[1772198423066,10.8277,83.117,83.071,10.8336]
[1772198423463,6.2053753,83.116,83.071,10.8336]
[1772198423660,17.0333753,83.115,83.071,10.8336]
[1772198423860,6.2053753,83.114,83.017,6.37556376]
[1772198424266,36.13,83.129,83.051,10.8362]
[1772198424267,6.2053753,83.098,83.051,10.8362]
[1772198424465,6.2053753,83.098,83.042,6.37556376]
[1772198425067,6.2053753,83.098,83.05,10.8364]
[1772198426169,6.2053753,83.096,83.042,17.21296376]
[1772198427069,17.0362753,83.093,83.042,17.21296376]
[1772198427271,17.0362753,83.093,83.049,10.8366]
[1772198429675,17.0362753,83.093,83.042,17.21306376]
[1772198429873,6.2053753,83.093,83.043,6.37556376]
[1772198430875,6.2053753,83.093,83.051,6.37556376]
[1772198436484,6.2053753,83.091,83.05,10.8364]
[1772198440275,6.06063489,83.074,83.029,17.04574042]
[1772198440479,6.06063489,83.074,83.03,6.20654042]
[1772198440984,6.06063489,83.104,83.03,6.20654042]
[1772198442480,10.83,83.1,83.058,10.8353]
[1772198442680,10.83,83.1,83.059,6.20654042]
[1772198443982,10.83,83.1,83.061,10.835]
[1772198445484,16.89063489,83.1,83.061,10.835]
[1772198447788,6.06063489,83.099,83.061,10.835]
[1772198448176,10.8303,83.097,83.061,10.835]
[1772198448379,6.06063489,83.096,83.053,10.836]
[1772198449689,6.06063489,83.094,83.058,10.8353]
[1772198450589,10.831,83.092,83.045,6.20654042]
[1772198451584,6.06063489,83.092,83.045,6.20654042]
[1772198452587,10.8316,83.087,83.045,6.20654042]
[1772198454883,6.06063489,83.092,83.045,6.20654042]
[1772198455888,10.8326,83.081,83.045,6.20654042]
[1772198457690,6.06063489,83.092,83.045,6.20654042]
[1772198460783,6.06063489,83.092,83.046,6.20654042]
[1772198461096,6.06063489,83.089,83.019,6.20654042]
[1772198461695,6.06063489,83.079,83.033,6.20654042]
[1772198462885,6.06063489,83.076,83.033,6.20654042]
[1772198463395,6.06063489,83.066,83.022,10.84]
[1772198463597,6.06063489,83.066,83.018,6.20654042]
[1772198464093,6.06063489,83.066,83.019,10.8404]
[1772198464296,6.06063489,83.066,83.02,6.20654042]
[1772198464698,6.06063489,83.064,83.022,10.8401]
[1772198464899,6.06063489,83.064,83.023,6.20654042]
[1772198465694,10.8337,83.072,83.026,6.20654042]
[1772198465992,6.06063489,83.071,83.026,6.20654042]
[1772198466789,6.06063489,83.056,83.006,6.20654042]
[1772198467396,6.06063489,83.056,83.013,17.04774042]
[1772198469393,6.06063489,83.056,83.014,6.20654042]
[1772198471800,6.06063489,83.056,83.016,10.8408]
[1772198472703,5.83523107,83.067,83.032,6.07294905]
[1772198480210,5.83523107,83.091,83.034,6.07294905]
[1772198482011,5.83523107,83.088,83.046,6.07294905]
[1772198485008,5.83523107,83.086,83.046,6.07294905]
[1772198487815,10.8316,83.087,83.002,32.25561907]
[1772198487816,5.83523107,83.083,83.03,6.07294905]
[1772198488218,5.83523107,83.083,83.037,6.07294905]
[1772198489011,10.8324,83.082,83.043,10.8373]
[1772198489213,16.6389561,83.082,83.043,10.8373]
[1772198489408,16.6389561,83.082,83.044,6.07294905]
[1772198491120,5.77299083,83.079,83.032,6.07294905]
[1772198491923,5.76211826,83.073,83.032,6.07294905]
[1772198493031,16.56920088,83.07,83.032,6.07294905]
[1772198495332,5.73530088,83.07,83.033,16.91154905]
[1772198495535,5.73530088,83.07,83.034,6.07294905]
[1772198496736,5.70010846,83.081,83.035,6.07294905]
[1772198496937,5.6955858,83.092,83.035,6.07294905]
[1772198497931,10.8317,83.087,83.046,16.90984905]
[1772198498130,16.47798698,83.087,83.046,16.90984905]
[1772198498332,5.64628698,83.086,83.046,16.90984905]
[1772198498535,5.64628698,83.084,83.046,16.90984905]
[1772198500036,5.64339899,83.095,83.047,5.50917783]
[1772198500235,5.64339899,83.095,83.057,10.8355]
[1772198500433,5.64339899,83.095,83.058,5.50917783]
[1772198501528,5.75606121,83.093,83.013,5.50917783]
[1772198503044,5.75606121,83.077,83.031,5.50917783]
[1772198504144,5.75606121,83.073,83.031,5.50917783]
[1772198505338,5.75606121,83.073,83.033,5.50917783]
[1772198506934,5.75606121,83.073,83.036,10.8383]
[1772198507546,5.75606121,83.073,83.033,5.50917783]
[1772198509037,5.75606121,83.073,83.034,16.34767783]
[1772198509648,5.75606121,83.073,83.035,5.50917783]
[1772198511249,5.75606121,83.073,83.039,5.50917783]
[1772198511451,5.75606121,83.073,83.038,10.838]
[1772198512150,5.75606121,83.073,83.032,5.50917783]
[1772198513050,5.70762839,83.071,83.032,5.50917783]
[1772198513953,10.8339,83.07,83.032,5.50917783]
[1772198515844,5.70563388,83.069,83.032,5.50917783]
[1772198516044,5.70563388,83.052,83.007,5.50917783]
[1772198517952,5.70563388,83.052,83.014,5.50917783]
[1772198518550,5.67785829,83.075,83.014,5.50917783]
[1772198519553,5.74104559,83.062,83.016,5.50917783]
[1772198520553,5.73337828,83.057,83.016,5.50917783]
[1772198521853,10.8359,83.055,83.016,5.50917783]
[1772198522058,5.75606121,83.054,83.016,5.50917783]
[1772198523359,5.75606121,83.052,83.002,32.25561907]
[1772198524349,10.8384,83.036,83.002,32.25561907]
[1772198524548,5.75606121,83.039,83.002,32.25561907]
[1772198524549,5.75606121,83.039,83.003,5.50917783]
[1772198525956,5.75606121,83.039,83.003,16.35167783]
[1772198526956,5.75606121,83.039,83.004,5.50917783]
[1772198527151,36.13,83.067,83.007,5.50917783]
[1772198527152,5.75606121,83.05,83.007,5.50917783]
[1772198530067,5.46408508,83.058,83.007,5.50917783]
[1772198530665,10.8368,83.048,83.007,5.50917783]
[1772198532366,16.30158508,83.043,83.007,5.50917783]
[1772198532568,5.46408508,83.042,83.007,5.50917783]
[1772198532767,5.46408508,83.042,83.003,5.66762746]
[1772198532966,10.8386,83.034,83.003,5.66762746]
[1772198533672,5.46408508,83.018,82.955,10.8488]
[1772198533867,5.46408508,83.018,82.919,29.92958904]
[1772198534071,5.46408508,83.018,82.909,29.92958904]
[1772198534269,5.46408508,83.018,82.904,29.92958904]
[1772198534463,5.46408508,83.018,82.911,5.41820734]
[1772198534964,10.8443,82.99,82.94,10.8507]
[1772198535163,10.8443,82.99,82.911,5.41820734]
[1772198535564,10.8443,82.99,82.912,5.66762746]
[1772198535766,10.8443,82.99,82.921,5.66762746]
[1772198536070,16.30838508,82.99,82.921,5.66762746]
[1772198536860,5.46408508,82.989,82.932,5.66762746]
[1772198537868,10.8458,82.979,82.932,5.66762746]
[1772198538871,10.8458,82.979,82.935,5.66762746]
[1772198539875,16.31008508,82.977,82.935,5.66762746]
[1772198540172,5.46408508,82.976,82.935,5.66762746]
[1772198540864,5.46408508,82.972,82.935,5.66762746]
[1772198543374,5.46408508,82.986,82.944,5.66762746]
[1772198550986,5.46408508,82.986,82.951,10.8493]
[1772198551184,5.46408508,82.998,82.952,5.66762746]
[1772198551789,5.46408508,82.998,82.957,5.66762746]
[1772198551997,5.46408508,83.013,82.957,5.66762746]
[1772198552491,5.46408508,83.037,82.982,5.66762746]
[1772198553395,5.46408508,83.037,82.921,5.42201337]
[1772198553396,5.46408508,83.028,82.922,5.66762746]
[1772198554195,5.46408508,83.012,82.954,5.66762746]
[1772198554996,5.46408508,83.012,82.964,16.51522746]
[1772198555198,5.46408508,83.01,82.964,5.66762746]
[1772198556901,5.46408508,83.007,82.964,5.66762746]
[1772198557101,5.46408508,83.007,82.957,10.8485]
[1772198557900,5.46408508,83.004,82.957,16.51612746]
[1772198559000,5.73653265,83.001,82.95,10.8495]
[1772198559400,5.73653265,82.992,82.945,5.82126126]
[1772198559998,5.55486446,82.989,82.945,5.82126126]
[1772198560396,5.55486446,82.989,82.92,5.59676078]
[1772198561593,5.55486446,82.965,82.922,5.59676078]
[1772198562900,5.55486446,82.965,82.926,10.8526]
[1772198564096,5.55486446,82.965,82.922,5.59676078]
[1772198564802,5.55486446,82.965,82.924,5.59676078]
[1772198565201,5.55486446,82.963,82.924,5.59676078]
[1772198565594,5.55486446,82.959,82.909,5.59676078]
[1772198565996,5.55486446,82.972,82.911,5.59676078]
[1772198566697,5.55486446,82.954,82.911,5.59676078]
[1772198567394,5.55486446,82.952,82.911,5.59676078]
[1772198568507,5.55486446,82.947,82.894,5.59676078]
[1772198569404,36.13,82.987,82.896,5.59676078]
[1772198569405,5.55486446,82.945,82.896,5.59676078]
[1772198570906,5.55486446,82.945,82.899,5.59676078]
[1772198572100,5.55486446,82.945,82.902,5.59676078]
[1772198573510,5.55486446,82.945,82.904,5.59676078]
[1772198574303,5.55486446,82.945,82.888,5.59676078]
[1772198575910,5.55486446,82.945,82.906,5.59676078]
[1772198578015,5.55486446,82.945,82.906,16.45196078]
[1772198579608,5.55486446,82.945,82.906,5.59676078]
[1772198580911,5.55486446,82.944,82.906,5.59676078]
[1772198581510,5.55486446,82.93,82.838,12.95283348]
[1772198582213,36.13,82.933,82.86,12.95284115]
[1772198582709,22.7444507,82.947,82.79,2.09968686]
[1772198582710,36.13,82.931,82.805,12.95284115]
[1772198582910,10.858,82.886,82.837,23.75907818]
[1772198583111,36.13,82.922,82.838,12.89477818]
[1772198583313,36.13,82.92,82.838,12.89477818]
[1772198584214,36.13,82.92,82.823,12.894568]
[1772198584415,10.86,82.871,82.824,10.866]
[1772198584716,36.13,82.915,82.823,12.894568]
[1772198585014,36.13,82.913,82.823,12.894568]
[1772198585214,36.13,82.911,82.823,12.894568]
[1772198585721,10.8611,82.862,82.823,12.894568]
[1772198585913,5.4271989,82.904,82.796,12.92361388]
[1772198586214,36.13,82.897,82.796,12.92361388]
[1772198586609,10.863,82.848,82.796,12.92361388]
[1772198587012,36.13,82.893,82.796,12.92361388]
[1772198587312,10.8607,82.865,82.796,12.92361388]
[1772198587816,10.8607,82.865,82.797,10.8695]
[1772198588008,10.8616,82.858,82.798,12.98898546]
[1772198589616,36.13,82.903,82.76,62.0]
[1772198589617,10.8605,82.866,82.801,13.03083913]
[1772198589806,36.13,82.916,82.801,13.03083913]
[1772198590310,36.13,82.916,82.805,13.03083731]
[1772198590712,10.8612,82.862,82.806,10.8683]
[1772198590912,10.8612,82.862,82.805,13.03083731]
[1772198591515,10.862,82.855,82.805,13.03083731]
[1772198591914,36.13,82.899,82.805,13.03083731]
[1772198592417,168.8713,82.901,82.805,13.03083731]
[1772198592418,10.8641,82.839,82.805,13.03083731]
[1772198592619,36.13,82.891,82.805,13.03083731]
[1772198592808,36.13,82.889,82.792,12.95890992]
[1772198593008,168.8713,82.901,82.792,12.95890992]
[1772198593009,36.13,82.881,82.792,12.95890992]
[1772198593217,36.13,82.869,82.78,12.95890992]
[1772198593412,36.13,82.869,82.765,12.95890992]
[1772198593813,36.13,82.864,82.765,12.95890992]
[1772198594719,36.13,82.834,82.765,12.95890992]
[1772198595415,2.10151907,82.852,82.765,12.95890992]
[1772198596015,2.10151907,82.852,82.776,13.02123096]
[1772198596619,10.8645,82.836,82.776,13.02123096]
[1772198598421,36.13,82.885,82.776,13.02123096]
[1772198598619,2.10118282,82.872,82.791,12.9698954]
[1772198599420,10.8615,82.859,82.791,12.9698954]
[1772198599624,2.10118282,82.872,82.791,12.9698954]
[1772198601025,36.13,82.885,82.793,12.9709034]
[1772198601221,2.10065011,82.882,82.793,12.9709034]
[1772198601620,10.8621,82.855,82.799,12.9709034]
[1772198602124,2.10065011,82.882,82.799,12.9709034]
[1772198602928,10.8617,82.858,82.799,12.9709034]
[1772198603728,10.8617,82.858,82.801,10.869]
[1772198603923,46.9906,82.866,82.802,12.97092612]
[1772198604128,10.8606,82.866,82.802,12.97092612]
[1772198604317,36.13,82.876,82.802,12.97092612]
[1772198604630,10.864,82.84,82.784,12.97092612]
[1772198605025,21.7191,82.874,82.794,13.01723948]
[1772198605420,10.8619,82.856,82.794,13.01723948]
[1772198607632,10.8594,82.875,82.824,12.89682864]
[1772198609027,10.8604,82.867,82.824,12.89682864]
[1772198609228,2.1005043,82.882,82.77,12.90828623]
[1772198609528,2.1005043,82.882,82.771,5.4311108]
[1772198609732,2.1005043,82.882,82.772,12.90828623]
[1772198610227,10.8635,82.843,82.789,10.8706]
[1772198610431,2.1005043,82.882,82.75,2.1011067]
[1772198610432,2.1005043,82.882,82.79,12.90815201]
[1772198610828,10.863,82.848,82.794,12.91559422]
[1772198611229,2.1005043,82.882,82.794,12.91559422]
[1772198611432,10.8636,82.843,82.794,12.91559422]
[1772198611932,10.8626,82.851,82.796,12.91557195]
[1772198613027,10.8626,82.851,82.799,12.90473453]
[1772198614628,460.29122875,82.886,82.808,12.90471082]
[1772198615234,460.29122875,82.886,82.769,36.13]
[1772198615235,10.8603,82.869,82.821,12.90259637]
[1772198616943,21.7079,82.917,82.825,12.91444612]
[1772198617233,36.23,82.933,82.825,12.91444612]
[1772198617536,2.09972486,82.922,82.825,12.91444612]
[1772198617937,10.857,82.893,82.847,10.863]
[1772198618139,10.857,82.893,82.848,12.91442435]
[1772198618337,2.09972486,82.922,82.848,12.91442435]
[1772198618534,21.6992,82.95,82.848,12.91442435]
[1772198618837,2.09936386,82.932,82.848,12.91442435]
[1772198620032,57.9303,82.946,82.857,12.83931894]
[1772198620432,2.09914225,82.942,82.857,12.83931894]
[1772198620934,2.09914225,82.942,82.868,12.8250665]
[1772198622133,2.09914225,82.942,82.871,12.82503037]
[1772198622134,10.8544,82.913,82.871,12.82503037]
[1772198622635,10.8533,82.921,82.874,12.82503037]
[1772198622841,36.23,82.965,82.874,12.82503037]
[1772198623039,2.09907894,82.952,82.874,12.82503037]
[1772198623235,2.09907894,82.952,82.88,12.75956265]
[1772198626137,10.8536,82.92,82.88,12.75956265]
[1772198626539,10.8524,82.929,82.88,12.75956265]
[1772198626842,2.09907894,82.952,82.88,12.75956265]
[1772198628337,36.23,82.993,82.88,12.75956265]
[1772198628535,2.09856628,82.962,82.88,12.75956265]
[1772198628844,2.09856628,82.962,82.882,12.7743061]
[1772198629838,21.6984,82.953,82.882,12.7743061]
[1772198630247,2.09856628,82.962,82.882,12.7743061]
[1772198630539,2.09856628,82.962,82.883,12.7827509]
[1772198632042,10.852,82.932,82.885,10.858]
[1772198632245,2.09856628,82.962,82.886,12.78032014]
[1772198633044,10.8528,82.926,82.886,12.78032014]
[1772198633543,2.09856628,82.962,82.886,12.78032014]
[1772198633940,21.6983,82.953,82.886,12.78032014]
[1772198634943,10.8527,82.927,82.886,12.78032014]
[1772198637847,10.8534,82.921,82.886,12.78032014]
[1772198638539,2.09856628,82.962,82.886,12.78032014]
[1772198638738,5.59756414,82.961,82.886,2.014e-05]
[1772198639350,10.8522,82.93,82.886,2.014e-05]
[1772198639744,5.59756414,82.949,82.886,2.014e-05]
[1772198640642,10.8514,82.936,82.886,2.014e-05]
[1772198641348,5.59756414,82.964,82.886,2.014e-05]
[1772198641541,5.59756414,82.964,82.904,6.08317957]
[1772198641749,10.8498,82.948,82.904,6.08317957]
[1772198641948,5.59756414,82.952,82.904,6.08317957]
[1772198642649,5.59756414,82.94,82.878,6.08317957]
[1772198643544,10.8546,82.912,82.878,6.08317957]
[1772198643743,5.59756414,82.923,82.878,6.08317957]
[1772198644655,5.59756414,82.909,82.845,6.08317957]
[1772198645256,5.59756414,82.946,82.861,6.08317957]
[1772198645953,5.59756414,82.946,82.871,6.08317957]
[1772198646956,10.851,82.939,82.883,6.08317957]
[1772198647557,10.852,82.932,82.883,6.08317957]
[1772198647762,5.59756414,82.932,82.869,6.08317957]
[1772198648152,5.59756414,82.917,82.869,6.08317957]
[1772198648959,10.8526,82.927,82.869,6.08317957]
[1772198649860,10.8526,82.927,82.879,10.8588]
[1772198650055,10.8526,82.927,82.88,5.88806831]
[1772198650259,5.59756414,82.931,82.88,5.88806831]
[1772198651765,5.78359294,82.929,82.851,5.88806831]
[1772198652364,5.78359294,82.918,82.866,5.88806831]
[1772198653966,10.8544,82.913,82.869,10.8601]
[1772198655469,5.78359294,82.918,82.866,5.88806831]
[1772198655470,10.8553,82.907,82.866,5.88806831]
[1772198655767,21.6967,82.96,82.866,5.88806831]
[1772198655768,5.78359294,82.906,82.866,5.88806831]
[1772198656966,10.8558,82.903,82.866,5.88806831]
[1772198657772,5.78359294,82.899,82.853,5.88806831]
[1772198658970,5.78359294,82.894,82.853,5.88806831]
[1772198660076,5.78359294,82.894,82.79,36.23]
[1772198660077,5.78359294,82.894,82.833,5.88806831]